fUST/lending_fUST_20250806
["ID","MTS","AMOUNT","RATE_DAILY","PERIOD"]
[377431654,1754410248849,-460.0,0.00029041,2]
[377431655,1754410248860,-473.2,0.00029041,2]
[377431656,1754410248877,-606.32,0.00029041,2]
[377431657,1754410248887,-460.0,0.00029041,2]
[377431658,1754410248899,-2494.53,0.00029041,2]
[377431659,1754410248910,-460.0,0.00029041,2]
[377431660,1754410248918,-460.0,0.00029041,2]
[377431661,1754410248927,-1190.71,0.00029041,2]
[377431662,1754410248936,-573.07,0.00029041,2]
[377431663,1754410248945,-515.93,0.00029041,2]
[377431664,1754410248953,-856.28,0.00029041,2]
[377431665,1754410248962,-540.79,0.00029041,2]
[377431666,1754410248971,-460.0,0.00029041,2]
[377431667,1754410248981,-460.0,0.00029041,2]
[377431668,1754410248991,-472.45,0.00029041,2]
[377431669,1754410249000,-1662.46,0.00029041,2]
[377431670,1754410249010,-864.66,0.00029041,2]
[377431671,1754410249020,-679.13,0.00029041,2]
[377431672,1754410249030,-563.81,0.00029041,2]
[377431673,1754410249040,-460.0,0.00029041,2]
[377431674,1754410249050,-3184.23,0.00029041,2]
[377431675,1754410249059,-1361.89,0.00029041,2]
[377431676,1754410249069,-460.0,0.00029041,2]
[377431677,1754410249078,-460.0,0.00029041,2]
[377431678,1754410249088,-460.0,0.00029041,2]
[377431679,1754410249098,-2500.63,0.00029041,2]
[377431680,1754410249108,-460.0,0.00029041,2]
[377431681,1754410249117,-460.0,0.00029041,2]
[377431682,1754410249127,-460.0,0.00029041,2]
[377431683,1754410249137,-1183.79,0.00029041,2]
[377431684,1754410249146,-460.0,0.00029041,2]
[377431685,1754410249156,-460.0,0.00029041,2]
[377431686,1754410249166,-460.0,0.00029041,2]
[377431687,1754410249175,-465.2,0.00029041,2]
[377431688,1754410249185,-460.0,0.00029041,2]
[377431689,1754410249194,-460.0,0.00029041,2]
[377431690,1754410249204,-460.0,0.00029041,2]
[377431691,1754410249213,-2381.52,0.00029041,2]
[377431692,1754410249223,-460.0,0.00029041,2]
[377431693,1754410249233,-460.0,0.00029041,2]
[377431694,1754410249242,-477.4,0.00029041,2]
[377431695,1754410249252,-704.17,0.00029041,2]
[377431696,1754410249261,-832.73,0.00029041,2]
[377431697,1754410249273,-713.09,0.00029041,2]
[377431698,1754410249282,-153.34,0.00029044,15]
[377431699,1754410249292,-460.0,0.00029076,2]
[377431700,1754410249301,-460.0,0.00029076,2]
[377431701,1754410249311,-527.73352177,0.00029096,2]
[377431702,1754410249320,-153.34,0.00029144,15]
[377431703,1754410249330,-1736.43412055,0.00029231,2]
[377431704,1754410249339,-527.73352177,0.00029233,2]
[377431705,1754410249350,-153.34,0.00029244,15]
[377431706,1754410249359,-460.0,0.00029315,2]
[377431707,1754410249368,-151.0,0.00029315,7]
[377431708,1754410249379,-532.81,0.00029315,2]
[377431709,1754410249389,-460.0,0.00029315,2]
[377431710,1754410249404,-460.0,0.00029315,2]
[377431711,1754410249422,-460.0,0.00029315,2]
[377431712,1754410249431,-871.43,0.00029315,2]
[377431713,1754410249440,-1387.58,0.00029315,2]
[377431714,1754410249449,-460.0,0.00029315,2]
[377431715,1754410249458,-504.62,0.00029315,2]
[377431716,1754410249467,-942.7,0.00029315,2]
[377431717,1754410249477,-460.0,0.00029315,2]
[377431718,1754410249486,-460.0,0.00029315,2]
[377431719,1754410249500,-500.0,0.00029315,2]
[377431720,1754410249517,-460.0,0.00029315,2]
[377431721,1754410249527,-537.28,0.00029315,2]
[377431722,1754410249536,-460.0,0.00029315,2]
[377431723,1754410249545,-986.94,0.00029315,2]
[377431724,1754410249554,-460.0,0.00029315,2]
[377431725,1754410249563,-702.16,0.00029315,2]
[377431726,1754410249572,-460.0,0.00029315,2]
[377431727,1754410249582,-473.2,0.00029315,2]
[377431728,1754410249591,-606.32,0.00029315,2]
[377431729,1754410249601,-460.0,0.00029315,2]
[377431730,1754410249610,-2494.53,0.00029315,2]
[377431731,1754410249619,-460.0,0.00029315,2]
[377431732,1754410249628,-460.0,0.00029315,2]
[377431733,1754410249638,-1190.71,0.00029315,2]
[377431734,1754410249647,-573.07,0.00029315,2]
[377431735,1754410249656,-515.93,0.00029315,2]
[377431736,1754410249665,-856.28,0.00029315,2]
[377431737,1754410249674,-540.79,0.00029315,2]
[377431738,1754410249684,-460.0,0.00029315,2]
[377431739,1754410249694,-459.62630756,0.00029315,2]
[377431740,1754410249707,-472.45,0.00029315,2]
[377431741,1754410249718,-1662.46,0.00029315,2]
[377431742,1754410249727,-864.66,0.00029315,2]
[377431743,1754410249737,-679.13,0.00029315,2]
[377431744,1754410249748,-563.81,0.00029315,2]
[377431745,1754410249757,-460.0,0.00029315,2]
[377431746,1754410249768,-3184.23,0.00029315,2]
[377431747,1754410249778,-1361.89,0.00029315,2]
[377431748,1754410249788,-151.0,0.00029315,7]
[377431749,1754410249798,-460.0,0.00029315,2]
[377431750,1754410249808,-460.0,0.00029315,2]
[377431751,1754410249818,-460.0,0.00029315,2]
[377431752,1754410249828,-2500.63,0.00029315,2]
[377431753,1754410249837,-460.0,0.00029315,2]
[377431754,1754410249847,-460.0,0.00029315,2]
[377431755,1754410249856,-1183.79,0.00029315,2]
[377431756,1754410249866,-460.0,0.00029315,2]
[377431757,1754410249876,-460.0,0.00029315,2]
[377431758,1754410249886,-460.0,0.00029315,2]
[377431759,1754410249895,-460.0,0.00029315,2]
[377431760,1754410249905,-465.2,0.00029315,2]
[377431761,1754410249914,-460.0,0.00029315,2]
[377431762,1754410249924,-460.0,0.00029315,2]
[377431763,1754410249934,-567.89,0.00029315,2]
[377431764,1754410249943,-2381.52,0.00029315,2]
[377431765,1754410249953,-460.0,0.00029315,2]
[377431766,1754410249964,-460.0,0.00029315,2]
[377431767,1754410249974,-477.4,0.00029315,2]
[377431768,1754410249983,-704.17,0.00029315,2]
[377431769,1754410249993,-832.73,0.00029315,2]
[377431770,1754410250003,-713.09,0.00029315,2]
[377431771,1754410250013,-153.34,0.00029344,15]
[377431772,1754410250023,-460.0,0.0002935,2]
[377431773,1754410250032,-460.0,0.0002935,2]
[377431774,1754410250041,-360.0,0.00029367,2]
[377431775,1754410250051,-527.73352177,0.0002937,2]
[377431776,1754410250060,-2301.40475005,0.00029376,11]
[377431777,1754410250070,-200.0,0.0002941,15]
[377431778,1754410250079,-300.0,0.0002941,15]
[377431779,1754410250088,-157.409272,0.00029424,7]
[377431780,1754410250097,-153.34,0.00029444,15]
[377431781,1754410250107,-800.0,0.00029447,2]
[377431782,1754410250116,-1411.95348611,0.00029477,2]
[377431783,1754410250126,-1000.0,0.000295,3]
[377431784,1754410250135,-527.73352177,0.00029507,2]
[377431785,1754410250145,-874.23881095,0.0002954,2]
[377431786,1754410250154,-153.34,0.00029544,15]
[377431787,1754410250163,-2320.64368534,0.00029564,5]
[377431788,1754410250172,-151.0,0.00029589,7]
[377431789,1754410250181,-151.0,0.00029589,7]
[377431790,1754410250190,-500.0,0.00029589,2]
[377431791,1754410250200,-460.0,0.00029589,2]
[377431792,1754410250209,-532.81,0.00029589,2]
[377431793,1754410250218,-460.0,0.00029589,2]
[377431794,1754410250227,-460.0,0.00029589,2]
[377431795,1754410250236,-151.0,0.00029589,7]
[377431796,1754410250245,-156.03355586,0.00029589,2]
[377431797,1754410250255,-871.43,0.00029589,2]
[377431798,1754410250264,-151.0,0.00029589,7]
[377431799,1754410250275,-151.71578,0.00029589,7]
[377431800,1754410250284,-1387.58,0.00029589,2]
[377431801,1754410250294,-168.50422841,0.00029589,2]
[377431802,1754410250395,-291.49577159,0.00029589,2]
[377431803,1754410250406,-504.62,0.00029589,2]
[377431804,1754410250416,-942.7,0.00029589,2]
[377431805,1754410250426,-429.62078725,0.00029589,2]
[377431806,1754410250436,-460.0,0.00029589,2]
[377431807,1754410250445,-500.0,0.00029589,2]
[377431808,1754410250455,-460.0,0.00029589,2]
[377431809,1754410250464,-537.28,0.00029589,2]
[377431810,1754410250473,-151.0,0.00029589,7]
[377431811,1754410250484,-460.0,0.00029589,2]
[377431812,1754410250494,-151.0,0.00029589,7]
[377431813,1754410250503,-986.94,0.00029589,2]
[377431814,1754410250514,-152.396567,0.00029589,7]
[377431815,1754410250524,-152.396567,0.00029589,7]
[377431816,1754410250533,-460.0,0.00029589,2]
[377431817,1754410250543,-702.16,0.00029589,2]
[377431818,1754410250552,-460.0,0.00029589,2]
[377431819,1754410250561,-473.2,0.00029589,2]
[377431820,1754410250571,-606.32,0.00029589,2]
[377431821,1754410250582,-460.0,0.00029589,2]
[377431822,1754410250592,-2494.53,0.00029589,2]
[377431823,1754410250602,-460.0,0.00029589,2]
[377431824,1754410250612,-460.0,0.00029589,2]
[377431825,1754410250623,-1190.71,0.00029589,2]
[377431826,1754410250632,-573.07,0.00029589,2]
[377431827,1754410250642,-151.0,0.00029589,7]
[377431828,1754410250651,-515.93,0.00029589,2]
[377431829,1754410250660,-856.28,0.00029589,2]
[377431830,1754410250670,-540.79,0.00029589,2]
[377431831,1754410250679,-460.0,0.00029589,2]
[377431832,1754410250688,-472.45,0.00029589,2]
[377431833,1754410250698,-1662.46,0.00029589,2]
[377431834,1754410250711,-864.66,0.00029589,2]
[377431835,1754410250722,-679.13,0.00029589,2]
[377431836,1754410250732,-563.81,0.00029589,2]
[377431837,1754410250743,-460.0,0.00029589,2]
[377431838,1754410250754,-3184.23,0.00029589,2]
[377431839,1754410250764,-1361.89,0.00029589,2]
[377431840,1754410250775,-460.0,0.00029589,2]
[377431841,1754410250785,-460.0,0.00029589,2]
[377431842,1754410250795,-460.0,0.00029589,2]
[377431843,1754410250805,-2500.63,0.00029589,2]
[377431844,1754410250815,-460.0,0.00029589,2]
[377431845,1754410250824,-460.0,0.00029589,2]
[377431846,1754410250834,-1183.79,0.00029589,2]
[377431847,1754410250844,-460.0,0.00029589,2]
[377431848,1754410250854,-460.0,0.00029589,2]
[377431849,1754410250865,-460.0,0.00029589,2]
[377431850,1754410250875,-460.0,0.00029589,2]
[377431851,1754410250884,-465.2,0.00029589,2]
[377431852,1754410250894,-460.0,0.00029589,2]
[377431853,1754410250904,-460.0,0.00029589,2]
[377431854,1754410251044,-2381.52,0.00029589,2]
[377431855,1754410251055,-460.0,0.00029589,2]
[377431856,1754410251064,-460.0,0.00029589,2]
[377431857,1754410251074,-477.4,0.00029589,2]
[377431858,1754410251083,-704.17,0.00029589,2]
[377431859,1754410251093,-832.73,0.00029589,2]
[377431860,1754410251102,-713.09,0.00029589,2]
[377431861,1754410251111,-450.41,0.000296,2]
[377431862,1754410251121,-435.36535,0.00029624,2]
[377431863,1754410251130,-460.0,0.00029624,2]
[377431864,1754410251139,-153.38,0.00029644,15]
[377431865,1754410251149,-527.73352177,0.00029644,2]
[377431866,1754410251158,-300.0,0.00029686,2]
[377431867,1754410251167,-500.0,0.0002971,5]
[377431868,1754410251176,-527.73352177,0.00029781,2]
[377431869,1754410251186,-1600.0,0.00029863,7]
[377431870,1754410251195,-460.0,0.00029863,2]
[377431871,1754410251206,-532.81,0.00029863,2]
[377431872,1754410251216,-460.0,0.00029863,2]
[377431873,1754410251227,-460.0,0.00029863,2]
[377431874,1754410251236,-871.43,0.00029863,2]
[377431875,1754410251245,-1387.58,0.00029863,2]
[377431876,1754410251254,-460.0,0.00029863,2]
[377431877,1754410251264,-504.62,0.00029863,2]
[377431878,1754410251273,-942.7,0.00029863,2]
[377431879,1754410251283,-460.0,0.00029863,2]
[377431880,1754410251292,-500.0,0.00029863,2]
[377431881,1754410251301,-460.0,0.00029863,2]
[377431882,1754410251310,-537.28,0.00029863,2]
[377431883,1754410251321,-460.0,0.00029863,2]
[377431884,1754410251331,-986.94,0.00029863,2]
[377431885,1754410251340,-702.16,0.00029863,2]
[377431886,1754410251350,-244.46,0.00029863,2]
[377431887,1754410251360,-460.0,0.00029863,2]
[377431888,1754410251370,-460.0,0.00029863,2]
[377431889,1754410251382,-473.2,0.00029863,2]
[377431890,1754410251391,-606.32,0.00029863,2]
[377431891,1754410251402,-460.0,0.00029863,2]
[377431892,1754410251411,-460.0,0.00029863,2]
[377431893,1754410251422,-2494.53,0.00029863,2]
[377431894,1754410251432,-264.85102485,0.00029863,2]
[377431895,1754410251443,-1190.71,0.00029863,2]
[377431896,1754410251454,-573.07,0.00029863,2]
[377431897,1754410251465,-515.93,0.00029863,2]
[377431898,1754410251476,-856.28,0.00029863,2]
[377431899,1754410251486,-540.79,0.00029863,2]
[377431900,1754410251495,-460.0,0.00029863,2]
[377431901,1754410251505,-472.45,0.00029863,2]
[377431902,1754410251517,-1662.46,0.00029863,2]
[377431903,1754410251534,-864.66,0.00029863,2]
[377431904,1754410251544,-679.13,0.00029863,2]
[377431905,1754410251554,-563.81,0.00029863,2]
[377431906,1754410251564,-460.0,0.00029863,2]
[377431907,1754410251574,-3184.23,0.00029863,2]
[377431908,1754410251583,-1361.89,0.00029863,2]
[377431909,1754410251593,-460.0,0.00029863,2]
[377431910,1754410251602,-460.0,0.00029863,2]
[377431911,1754410251612,-460.0,0.00029863,2]
[377431912,1754410251622,-2500.63,0.00029863,2]
[377431913,1754410251632,-460.0,0.00029863,2]
[377431914,1754410251641,-460.0,0.00029863,2]
[377431915,1754410251651,-1183.79,0.00029863,2]
[377431916,1754410251660,-460.0,0.00029863,2]
[377431917,1754410251669,-460.0,0.00029863,2]
[377431918,1754410251680,-460.0,0.00029863,2]
[377431919,1754410251690,-460.0,0.00029863,2]
[377431920,1754410251700,-465.2,0.00029863,2]
[377431921,1754410251713,-460.0,0.00029863,2]
[377431922,1754410251722,-460.0,0.00029863,2]
[377431923,1754410251731,-2381.52,0.00029863,2]
[377431924,1754410251740,-460.0,0.00029863,2]
[377431925,1754410251750,-460.0,0.00029863,2]
[377431926,1754410251760,-477.4,0.00029863,2]
[377431927,1754410251769,-266.468034,0.00029863,7]
[377431928,1754410251778,-704.17,0.00029863,2]
[377431929,1754410251788,-832.73,0.00029863,2]
[377431930,1754410251798,-460.0,0.00029898,2]
[377431931,1754410251807,-500.0,0.0002991,5]
[377431932,1754410251817,-460.0,0.00029915,2]
[377431933,1754410251828,-799.1509536,0.00029923,30]
[377431934,1754410251837,-1000.0,0.0003,3]
[377431935,1754410251848,-1500.0,0.0003,3]
[377431936,1754410251857,-151.61367767,0.0003,7]
[377431937,1754410251867,-4000.0,0.0003,4]
[377431938,1754410251876,-151.0,0.0003,7]
[377431939,1754410251885,-3906.97677123,0.00030003,2]
[377431940,1754410251895,-679.3,0.00030005,7]
[377431941,1754410251904,-151.052372,0.0003001,7]
[377431942,1754410251914,-23009.51934145,0.00030034,2]
[377431943,1754410251923,-151.0,0.00030034,7]
[377431944,1754410251933,-151.0,0.0003004,7]
[377431945,1754410251942,-151.0,0.0003008,7]
[377431946,1754410251952,-500.0,0.0003011,5]
[377431947,1754410251962,-151.0,0.0003012,7]
[377431948,1754410251972,-460.0,0.00030136,2]
[377431949,1754410251982,-532.81,0.00030136,2]
[377431950,1754410251992,-460.0,0.00030136,2]
[377431951,1754410252002,-460.0,0.00030136,2]
[377431952,1754410252012,-871.43,0.00030136,2]
[377431953,1754410252026,-1387.58,0.00030136,2]
[377431954,1754410252037,-460.0,0.00030136,2]
[377431955,1754410252047,-504.62,0.00030136,2]
[377431956,1754410252057,-942.7,0.00030136,2]
[377431957,1754410252067,-500.0,0.00030136,2]
[377431958,1754410252077,-500.0,0.00030136,2]
[377431959,1754410252087,-500.0,0.00030136,2]
[377431960,1754410252096,-500.0,0.00030136,2]
[377431961,1754410252106,-460.0,0.00030136,2]
[377431962,1754410252117,-500.0,0.00030136,2]
[377431963,1754410252127,-218.54,0.00030136,2]
[377431964,1754410252136,-537.28,0.00030136,2]
[377431965,1754410252146,-151.0,0.00030136,7]
[377431966,1754410252155,-460.0,0.00030136,2]
[377431967,1754410252165,-151.0,0.00030136,7]
[377431968,1754410252174,-986.94,0.00030136,2]
[377431969,1754410252184,-152.396567,0.00030136,7]
[377431970,1754410252193,-152.396567,0.00030136,7]
[377431971,1754410252203,-702.16,0.00030136,2]
[377431972,1754410252212,-460.0,0.00030136,2]
[377431973,1754410252222,-460.0,0.00030136,2]
[377431974,1754410252232,-473.2,0.00030136,2]
[377431975,1754410252242,-606.32,0.00030136,2]
[377431976,1754410252251,-460.0,0.00030136,2]
[377431977,1754410252261,-2494.53,0.00030136,2]
[377431978,1754410252271,-460.0,0.00030136,2]
[377431979,1754410252287,-1190.71,0.00030136,2]
[377431980,1754410252297,-573.07,0.00030136,2]
[377431981,1754410252310,-151.0,0.00030136,7]
[377431982,1754410252320,-515.93,0.00030136,2]
[377431983,1754410252330,-856.28,0.00030136,2]
[377431984,1754410252339,-540.79,0.00030136,2]
[377431985,1754410252349,-460.0,0.00030136,2]
[377431986,1754410252358,-472.45,0.00030136,2]
[377431987,1754410252367,-1662.46,0.00030136,2]
[377431988,1754410252376,-864.66,0.00030136,2]
[377431989,1754410252387,-679.13,0.00030136,2]
[377431990,1754410252396,-563.81,0.00030136,2]
[377431991,1754410252406,-460.0,0.00030136,2]
[377431992,1754410252415,-3184.23,0.00030136,2]
[377431993,1754410252425,-1361.89,0.00030136,2]
[377431994,1754410252434,-460.0,0.00030136,2]
[377431995,1754410252444,-460.0,0.00030136,2]
[377431996,1754410252453,-2500.63,0.00030136,2]
[377431997,1754410252462,-460.0,0.00030136,2]
[377431998,1754410252472,-460.0,0.00030136,2]
[377431999,1754410252482,-1183.79,0.00030136,2]
[377432000,1754410252491,-460.0,0.00030136,2]
[377432001,1754410252501,-460.0,0.00030136,2]
[377432002,1754410252512,-460.0,0.00030136,2]
[377432003,1754410252522,-460.0,0.00030136,2]
[377432004,1754410252532,-465.2,0.00030136,2]
[377432005,1754410252542,-460.0,0.00030136,2]
[377432006,1754410252553,-460.0,0.00030136,2]
[377432007,1754410252562,-2381.52,0.00030136,2]
[377432008,1754410252573,-460.0,0.00030136,2]
[377432009,1754410252582,-460.0,0.00030136,2]
[377432010,1754410252592,-477.4,0.00030136,2]
[377432011,1754410252601,-704.17,0.00030136,2]
[377432012,1754410252610,-832.73,0.00030136,2]
[377432013,1754410252619,-54614.5168398,0.00030137,2]
[377432014,1754410252627,-151.0,0.00030137,7]
[377432015,1754410252636,-151.0,0.0003016,7]
[377432016,1754410252646,-1175.13621432,0.00030171,2]
[377432017,1754410252655,-834.39397766,0.00030171,2]
[377432018,1754410252665,-478.69073459,0.00030171,2]
[377432019,1754410252675,-1914.76293835,0.00030171,2]
[377432020,1754410252684,-4308.2166113,0.00030171,2]
[377432021,1754410252694,-460.0,0.00030172,2]
[377432022,1754410252707,-800.0,0.00030182,2]
[377432023,1754410252716,-151.0,0.000302,7]
[377432024,1754410252726,-151.0,0.0003024,7]
[377432025,1754410252735,-800.0,0.00030241,2]
[377432026,1754410252746,-800.0,0.00030266,2]
[377432027,1754410252755,-151.0,0.0003028,7]
[377432028,1754410252765,-800.0,0.00030298,2]
[377432029,1754410252776,-800.0,0.00030301,2]
[377432030,1754410252786,-500.0,0.0003031,5]
[377432031,1754410252796,-800.0,0.00030314,2]
[377432032,1754410252806,-800.0,0.00030316,2]
[377432033,1754410252815,-800.0,0.0003032,2]
[377432034,1754410252824,-151.0,0.0003032,7]
[377432035,1754410252834,-735.16940006,0.00030337,26]
[377432036,1754410252843,-151.2598,0.00030359,2]
[377432037,1754410252853,-151.0,0.0003036,7]
[377432038,1754410252863,-800.0,0.00030367,2]
[377432039,1754410252873,-800.0,0.00030373,2]
[377432040,1754410252882,-500.0,0.00030389,2]
[377432041,1754410252892,-800.0,0.00030389,2]
[377432042,1754410252902,-509.4082719,0.00030389,2]
[377432043,1754410252911,-2199.84053582,0.00030389,2]
[377432044,1754410252921,-43705.12796656,0.000304,4]
[377432045,1754410252930,-90486.97,0.000304,4]
[377432046,1754410252939,-134340.98,0.000304,4]
[377432047,1754410252949,-1265848.0,0.000304,4]
[377432048,1754410252959,-152.529598,0.000304,7]
[377432049,1754410252968,-151.0,0.000304,7]
[377432050,1754410252978,-151.0,0.000304,7]
[377432051,1754410252988,-151.0,0.000304,7]
[377432052,1754410252998,-155.502723,0.000304,7]
[377432053,1754410253008,-152.396567,0.000304,7]
[377432054,1754410253018,-152.396567,0.000304,7]
[377432055,1754410253029,-152.396567,0.000304,7]
[377432056,1754410253038,-152.396567,0.000304,7]
[377432057,1754410253047,-151.0,0.000304,7]
[377432058,1754410253057,-151.0,0.000304,7]
[377432059,1754410253066,-196.226432,0.000304,7]
[377432060,1754410253075,-151.0,0.000304,7]
[377432061,1754410253084,-293.9572123,0.000304,7]
[377432062,1754410253094,-800.0,0.00030408,2]
[377432063,1754410253104,-460.0,0.0003041,2]
[377432064,1754410253113,-532.81,0.0003041,2]
[377432065,1754410253123,-460.0,0.0003041,2]
[377432066,1754410253132,-460.0,0.0003041,2]
[377432067,1754410253142,-871.43,0.0003041,2]
[377432068,1754410253151,-460.0,0.0003041,2]
[377432069,1754410253161,-1387.58,0.0003041,2]
[377432070,1754410253171,-504.62,0.0003041,2]
[377432071,1754410253181,-942.7,0.0003041,2]
[377432072,1754410253190,-460.0,0.0003041,2]
[377432073,1754410253199,-500.0,0.0003041,2]
[377432074,1754410253210,-537.28,0.0003041,2]
[377432075,1754410253219,-460.0,0.0003041,2]
[377432076,1754410253229,-986.94,0.0003041,2]
[377432077,1754410253239,-702.16,0.0003041,2]
[377432078,1754410253249,-460.0,0.0003041,2]
[377432079,1754410253259,-526.12901827,0.0003041,2]
[377432080,1754410253270,-473.2,0.0003041,2]
[377432081,1754410253280,-606.32,0.0003041,2]
[377432082,1754410253289,-534.40528036,0.0003041,2]
[377432083,1754410253298,-2494.53,0.0003041,2]
[377432084,1754410253308,-460.0,0.0003041,2]
[377432085,1754410253317,-1190.71,0.0003041,2]
[377432086,1754410253326,-573.07,0.0003041,2]
[377432087,1754410253336,-515.93,0.0003041,2]
[377432088,1754410253345,-856.28,0.0003041,2]
[377432089,1754410253355,-540.79,0.0003041,2]
[377432090,1754410253365,-460.0,0.0003041,2]
[377432091,1754410253374,-472.45,0.0003041,2]
[377432092,1754410253386,-1662.46,0.0003041,2]
[377432093,1754410253395,-864.66,0.0003041,2]
[377432094,1754410253404,-679.13,0.0003041,2]
[377432095,1754410253414,-563.81,0.0003041,2]
[377432096,1754410253423,-460.0,0.0003041,2]
[377432097,1754410253433,-1361.89,0.0003041,2]
[377432098,1754410253442,-3184.23,0.0003041,2]
[377432099,1754410253452,-460.0,0.0003041,2]
[377432100,1754410253461,-460.0,0.0003041,2]
[377432101,1754410253470,-2500.63,0.0003041,2]
[377432102,1754410253479,-460.0,0.0003041,2]
[377432103,1754410253489,-460.0,0.0003041,2]
[377432104,1754410253499,-1183.79,0.0003041,2]
[377432105,1754410253508,-460.0,0.0003041,2]
[377432106,1754410253517,-460.0,0.0003041,2]
[377432107,1754410253527,-460.0,0.0003041,2]
[377432108,1754410253536,-460.0,0.0003041,2]
[377432109,1754410253546,-465.2,0.0003041,2]
[377432110,1754410253555,-460.0,0.0003041,2]
[377432111,1754410253564,-460.0,0.0003041,2]
[377432112,1754410253574,-2381.52,0.0003041,2]
[377432113,1754410253583,-460.0,0.0003041,2]
[377432114,1754410253592,-460.0,0.0003041,2]
[377432115,1754410253602,-477.4,0.0003041,2]
[377432116,1754410253611,-704.17,0.0003041,2]
[377432117,1754410253621,-832.73,0.0003041,2]
[377432118,1754410253630,-760.39630456,0.00030427,2]
[377432119,1754410253639,-300.27,0.00030427,2]
[377432120,1754410253649,-800.0,0.00030443,2]
[377432121,1754410253658,-460.0,0.00030446,2]
[377432122,1754410253667,-300.27,0.00030453,2]
[377432123,1754410253677,-800.0,0.00030459,2]
[377432124,1754410253686,-560.0,0.00030463,2]
[377432125,1754410253695,-800.0,0.00030473,2]
[377432126,1754410253709,-1135.172903,0.0003048,5]
[377432127,1754410253719,-300.26129002,0.0003048,2]
[377432128,1754410253728,-199.376084,0.00030485,7]
[377432129,1754410253738,-152.396567,0.00030485,7]
[377432130,1754410253747,-152.396567,0.00030485,7]
[377432131,1754410253757,-152.396567,0.00030485,7]
[377432132,1754410253767,-152.396567,0.00030485,7]
[377432133,1754410253777,-151.0,0.00030485,7]
[377432134,1754410253787,-268.956698,0.00030485,7]
[377432135,1754410253796,-4716.88636329,0.0003049,2]
[377432136,1754410253807,-152.0,0.00030491,7]
[377432137,1754410253817,-152.0,0.00030491,7]
[377432138,1754410253827,-152.0,0.00030491,7]
[377432139,1754410253837,-152.0,0.00030491,7]
[377432140,1754410253847,-152.0,0.00030491,7]
[377432141,1754410253856,-152.0,0.00030491,7]
[377432142,1754410253867,-152.0,0.00030491,7]
[377432143,1754410253877,-1758.0,0.00030491,7]
[377432144,1754410253887,-152.0,0.00030491,7]
[377432145,1754410253897,-1758.0,0.00030491,7]
[377432146,1754410253907,-152.0,0.00030491,7]
[377432147,1754410253917,-1758.0,0.00030491,7]
[377432148,1754410253926,-152.0,0.00030491,7]
[377432149,1754410253936,-1758.0,0.00030491,7]
[377432150,1754410253946,-152.0,0.00030491,7]
[377432151,1754410253955,-1758.0,0.00030491,7]
[377432152,1754410253965,-152.0,0.00030491,7]
[377432153,1754410253975,-1758.0,0.00030491,7]